bitfinex-derivatives/quotes_SOLF0:USTF0_20241015
["timestamp","ask_amount","ask_price","bid_price","bid_amount"]
[1729020987595,5.34,154.38,154.28,5.34]
[1729020987986,16.8486,154.37,154.27,23.7083]
[1729020988182,3.22778109,154.36,154.27,23.7083]
[1729020988386,3.22778109,154.36,154.28,3.2412]
[1729020988589,18.2579,154.37,154.27,2.8283]
[1729020988789,3.241,154.3,154.27,4.6314]
[1729020988991,3.241,154.3,154.27,3.2414]
[1729020989700,3.2408,154.31,154.26,3.2417]
[1729020989992,3.27066739,154.33,154.26,3.2417]
[1729020990190,3.2408,154.31,154.25,15.54]
[1729020990396,3.2408,154.31,154.27,3.2415]
[1729020990895,20.88,154.34,154.25,15.54]
[1729020991094,20.88,154.34,154.26,3.2417]
[1729020991294,3.1756822,154.33,154.26,3.2417]
[1729020992795,3.241,154.3,154.26,3.2417]
[1729020992996,3.241,154.3,154.23,3.2422]
[1729020992997,20.88,154.3,154.23,3.2422]
[1729020993191,4.59524741,154.29,154.23,3.2422]
[1729020993802,4.59524741,154.29,154.23,3.2423]
[1729020993803,1.2953,154.29,154.23,3.2423]
[1729020994295,3.2418,154.26,154.23,3.2423]
[1729020994692,3.2414,154.28,154.25,3.2417]
[1729020996307,3.2416,154.27,154.24,3.242]
[1729020996504,15.54,154.28,154.18,5.34]
[1729020996811,3.2421,154.24,154.18,20.88]
[1729020997105,15.54,154.28,154.18,20.88]
[1729020997296,3.242,154.25,154.22,3.2424]
[1729020997491,8.0416,154.29,154.2,15.54]
[1729020997697,2.7016,154.29,154.2,15.54]
[1729020997904,3.2417,154.26,154.23,3.2422]
[1729020998299,3.2416,154.27,154.24,3.242]
[1729020998494,6.6353,154.29,154.22,15.54]
[1729020999002,3.2413,154.28,154.25,3.2418]
[1729020999799,6.6353,154.29,154.26,3.2417]
[1729021000904,6.6353,154.29,154.2,15.54]
[1729021001099,3.2417,154.27,154.24,3.242]
[1729021001915,3.2417,154.27,154.2,15.54]
[1729021002114,3.2417,154.27,154.25,3.2419]
[1729021002620,3.2417,154.26,154.24,3.2421]
[1729021002920,6.6353,154.29,154.24,3.2421]
[1729021003317,6.6353,154.29,154.2,15.54]
[1729021003318,1.2953,154.29,154.26,3.2416]
[1729021003522,5.34,154.28,154.26,3.2416]
[1729021004622,8.5813,154.28,154.25,3.2418]
[1729021004921,8.5813,154.28,154.22,15.54]
[1729021005116,8.5813,154.28,154.26,3.2417]
[1729021005415,3.2413,154.28,154.26,3.2417]
[1729021006225,4.5365,154.29,154.26,3.2417]
[1729021006422,3.2412,154.29,154.26,3.2417]
[1729021006723,15.54,154.32,154.22,15.54]
[1729021006925,3.241,154.3,154.27,3.2413]
[1729021007820,3.241,154.3,154.26,3.2416]
[1729021008024,15.54,154.34,154.24,15.54]
[1729021008220,3.2408,154.31,154.25,1.3851]
[1729021008413,3.2408,154.31,154.27,3.2414]
[1729021009229,3.2409,154.3,154.27,3.2414]
[1729021009725,8.66372252,154.32,154.25,3.2418]
[1729021010437,24.20372252,154.32,154.23,4.5642]
[1729021010820,3.2416,154.27,154.23,1.322]
[1729021011022,24.20372252,154.32,154.25,3.2418]
[1729021011531,3.2415,154.28,154.25,3.2418]
[1729021012026,3.2415,154.27,154.24,13.202]
[1729021012920,8.66372252,154.32,154.24,3.242]
[1729021012921,3.2417,154.26,154.24,3.242]
[1729021014021,3.2414,154.28,154.25,3.2418]
[1729021014424,9.96,154.3,154.25,3.2418]
[1729021015334,3.2416,154.27,154.24,13.202]
[1729021015624,3.2416,154.27,154.24,9.96]
[1729021015928,9.96,154.3,154.24,9.96]
[1729021016629,3.2414,154.28,154.25,3.2418]
[1729021018125,3.2413,154.29,154.27,3.2413]
[1729021018330,5.34,154.3,154.21,1.3851]
[1729021018523,5.34,154.3,154.25,9.96]
[1729021018927,3.2413,154.29,154.27,3.2415]
[1729021019535,15.3,154.3,154.25,3.2417]
[1729021019929,15.3,154.3,154.24,9.96]
[1729021020832,1.3051,154.31,154.26,9.96]
[1729021021031,11.2651,154.31,154.26,9.96]
[1729021021237,9.96,154.3,154.21,1.3851]
[1729021021434,3.2412,154.29,154.26,3.2416]
[1729021021839,9.96,154.3,154.24,9.96]
[1729021022039,3.2414,154.28,154.25,3.2417]
[1729021022335,9.96,154.3,154.24,9.96]
[1729021022938,1.3051,154.31,154.27,9.96]
[1729021023125,112.48543445,154.33,154.28,9.96]
[1729021023541,107.14543445,154.33,154.28,9.96]
[1729021023738,112.48543445,154.33,154.28,9.96]
[1729021023940,107.14543445,154.33,154.28,9.96]
[1729021024145,25.9164,154.43,154.3,9.96]
[1729021024334,9.96,154.38,154.33,9.96]
[1729021025746,3.24,154.35,154.33,9.96]
[1729021026041,9.96,154.38,154.32,3.2404]
[1729021026042,9.96,154.37,154.32,3.2404]
[1729021026436,3.2399,154.35,154.32,3.2404]
[1729021027537,3.2398,154.36,154.31,13.2005]
[1729021027734,15.3,154.38,154.33,9.96]
[1729021028245,3.2398,154.36,154.33,13.2002]
[1729021029644,3.24,154.34,154.31,9.96]
[1729021029838,13.23079175,154.37,154.31,9.96]
[1729021030240,13.23079175,154.37,154.32,3.2403]
[1729021031139,9.96,154.37,154.32,3.2403]
[1729021031342,3.2399,154.35,154.33,13.2002]
[1729021031550,9.96,154.39,154.34,9.96]
[1729021031751,5.34,154.39,154.35,9.96]
[1729021032041,3.2393,154.38,154.35,13.1997]
[1729021032246,15.3,154.4,154.35,9.96]
[1729021032643,15.3,154.4,154.36,3.2395]
[1729021032644,3.2391,154.39,154.36,3.2395]
[1729021033642,15.3,154.4,154.35,9.96]
[1729021034151,3.239,154.4,154.37,3.2393]
[1729021034348,15.3,154.41,154.36,9.96]
[1729021035450,3.2388,154.4,154.37,3.2393]
[1729021035653,9.96,154.41,154.36,9.96]
[1729021036153,3.2391,154.39,154.36,13.1995]
[1729021036845,3.2391,154.39,154.37,3.2394]
[1729021040152,3.2391,154.39,154.36,13.1994]
[1729021041144,3.2391,154.39,154.36,9.96]
[1729021041352,3.2391,154.39,154.37,3.2394]
[1729021041752,3.2388,154.4,154.38,9.96]
[1729021041951,18.0056,154.42,154.38,9.96]
[1729021042156,18.0056,154.42,154.37,3.2394]
[1729021042553,3.239,154.4,154.37,3.2394]
[1729021044157,18.0056,154.42,154.36,9.96]
[1729021044546,3.2389,154.4,154.37,3.2394]
[1729021044958,18.0056,154.42,154.36,9.96]
[1729021045252,3.2387,154.41,154.38,13.1991]
[1729021045848,9.96,154.41,154.36,13.1995]
[1729021046047,9.96,154.4,154.33,5.34]
[1729021046250,9.96,154.4,154.34,9.96]
[1729021046445,3.2393,154.38,154.35,3.2397]
[1729021047260,3.2393,154.38,154.36,3.2396]
[1729021049159,9.96,154.41,154.35,9.96]
[1729021050055,3.2393,154.38,154.36,3.2396]
[1729021050860,3.2391,154.39,154.35,9.96]
[1729021051055,9.96,154.41,154.35,9.96]
[1729021051459,3.2394,154.37,154.35,13.1998]
[1729021051657,9.96,154.36,154.29,1.4361]
[1729021051957,9.96,154.34,154.28,15.3]
[1729021052157,3.2404,154.33,154.28,15.3]
[1729021053364,3.2404,154.33,154.31,3.2406]
[1729021053564,9.96,154.35,154.3,9.96]
[1729021054159,3.2404,154.33,154.3,9.96]
[1729021054668,4.65597625,154.36,154.3,9.96]
[1729021054870,3.24,154.35,154.3,9.96]
[1729021055569,9.96,154.35,154.28,5.34]
[1729021055764,3.2404,154.33,154.29,9.96]
[1729021055966,9.96,154.35,154.29,9.96]
[1729021056160,1.3565,154.4,154.31,9.96]
[1729021056362,3.2397,154.36,154.32,9.96]
[1729021056771,3.2397,154.36,154.33,3.2401]
[1729021057167,9.96,154.39,154.34,9.96]
[1729021057368,9.96,154.39,154.35,3.2397]
[1729021057661,3.2393,154.38,154.35,3.2397]
[1729021057868,16.6808,154.4,154.36,3.2395]
[1729021058367,1.3808,154.4,154.36,9.96]
[1729021058571,1.3048,154.44,154.38,9.96]
[1729021058768,5.34,154.44,154.39,9.96]
[1729021059170,3.2384,154.42,154.39,9.96]
[1729021059672,3.2384,154.42,154.38,13.1991]
[1729021061967,3.2384,154.42,154.39,3.239]
[1729021064971,3.2384,154.42,154.4,13.1988]
[1729021065169,2.7506,154.47,154.41,9.96]
[1729021065375,1.3808,154.47,154.43,9.96]
[1729021065571,1.3808,154.47,154.45,9.96]
[1729021065779,3.2374,154.47,154.45,9.96]
[1729021066481,18.48248976,154.49,154.45,9.96]
[1729021066482,3.2375,154.46,154.45,9.96]
[1729021067775,3.2375,154.47,154.45,9.96]
[1729021067975,5.34,154.5,154.45,9.96]
[1729021068181,3.237,154.49,154.46,9.96]
[1729021068580,3.237,154.49,154.47,3.2373]
[1729021068782,3.237,154.49,154.48,9.96]
[1729021068982,3.2368,154.5,154.48,9.96]
[1729021069588,3.2369,154.49,154.48,9.96]
[1729021072394,1.3669,154.51,154.48,9.96]
[1729021072579,3.2367,154.5,154.49,9.96]
[1729021077683,3.31251887,154.55,154.5,3.2367]
[1729021077884,5.32,154.55,154.52,9.96]
[1729021078190,3.2362,154.53,154.52,9.96]
[1729021079485,6.04594979,154.56,154.5,13.1967]
[1729021079486,3.2363,154.52,154.5,13.1967]
[1729021080286,3.2368,154.5,154.47,3.2372]
[1729021080490,3.2368,154.5,154.48,9.96]
[1729021081091,3.2365,154.51,154.49,9.96]
[1729021081296,9.96,154.54,154.49,9.96]
[1729021081785,9.96,154.55,154.49,13.1969]
[1729021082190,3.2364,154.52,154.49,13.1969]
[1729021082488,9.96,154.55,154.49,13.1969]
[1729021083386,3.2365,154.51,154.49,13.1969]
[1729021084391,3.2373,154.48,154.45,4.561]
[1729021084590,3.2373,154.48,154.45,14.521]
[1729021084891,3.2373,154.48,154.45,11.2834]
[1729021085092,3.2369,154.49,154.47,13.1972]
[1729021085287,2.7629,154.56,154.48,9.96]
[1729021085592,1.4092,154.56,154.53,9.96]
[1729021085794,3.2358,154.54,154.53,9.96]
[1729021087094,3.2357,154.55,154.53,9.96]
[1729021087481,3.2357,154.55,154.54,9.96]
[1729021088189,3.2355,154.56,154.54,9.96]
[1729021089299,3.2355,154.56,154.53,13.196]
[1729021091088,112.29528611,154.58,154.54,9.96]
[1729021091397,3.2356,154.55,154.54,9.96]
[1729021093992,3.2353,154.57,154.55,3.2356]
[1729021094197,106.97528611,154.58,154.56,9.96]
[1729021094393,1.4355,154.62,154.56,9.96]
[1729021094590,3.28712577,154.64,154.61,9.96]
[1729021094789,173.88494546,154.77,154.63,9.96]
[1729021094790,3.25069855,154.66,154.63,9.96]
[1729021095089,9.96,154.68,154.63,9.96]
[1729021095090,15.28,154.68,154.63,9.96]
[1729021095297,5.32,154.68,154.64,9.96]
[1729021095689,8.63059858,154.68,154.64,9.96]
[1729021095892,3.2335,154.65,154.64,9.96]
[1729021097297,3.2338,154.64,154.63,9.96]
[1729021097889,3.2338,154.64,154.61,3.2343]
[1729021099094,3.2338,154.64,154.59,2.6912]
[1729021099095,8.1454,154.7,154.63,15.52]
[1729021099301,1.4109,154.73,154.64,15.52]
[1729021099497,5.32,154.72,154.66,15.52]
[1729021100198,3.2325,154.71,154.66,18.7532]
[1729021100390,5.32,154.72,154.66,18.7532]
[1729021100794,3.2328,154.69,154.66,18.7532]
[1729021101295,3.2323,154.71,154.68,3.2328]
[1729021103406,3.2323,154.71,154.66,20.84]
[1729021103407,3.2319,154.73,154.7,15.52]
[1729021104398,5.32,154.78,154.7,15.52]
[1729021104603,5.32,154.78,154.7,18.7525]
[1729021105103,3.2318,154.74,154.7,18.7525]
[1729021105600,3.2318,154.74,154.71,3.2322]
[1729021109700,15.52,154.8,154.7,15.52]
[1729021109902,3.2315,154.75,154.72,3.232]
[1729021112810,3.2315,154.75,154.72,18.752]
[1729021114306,3.2315,154.75,154.73,3.2319]
[1729021114803,5.32,154.8,154.7,5.32]
[1729021115006,3.9953,154.81,154.74,15.52]
[1729021115409,3.2311,154.77,154.74,18.7516]
[1729021115714,3.9953,154.81,154.74,15.52]
[1729021115906,3.2312,154.77,154.74,15.52]
[1729021116507,3.2312,154.77,154.74,18.7516]
[1729021118007,12.6089,154.81,154.7,5.32]
[1729021118215,9.93,154.79,154.73,9.93]
[1729021119019,3.2316,154.75,154.73,9.93]
[1729021119211,3.2316,154.75,154.72,3.232]
[1729021119212,2.6789,154.81,154.74,9.93]
[1729021119517,3.2313,154.76,154.74,13.1617]
[1729021120521,3.2311,154.77,154.75,9.93]
[1729021121020,12.6089,154.81,154.75,9.93]
[1729021122208,3.2316,154.75,154.72,3.2319]
[1729021125525,2.6789,154.81,154.68,1.3234]
[1729021125823,6.4609,154.8,154.68,5.32]
[1729021126124,3.2322,154.72,154.69,3.2326]
[1729021128820,3.2322,154.72,154.7,3.2325]
[1729021129824,3.2324,154.71,154.68,3.2329]
[1729021130028,3.2324,154.71,154.67,6.7242]
[1729021130420,3.2324,154.71,154.68,3.2327]
[1729021130725,3.2324,154.71,154.67,6.7242]
[1729021131323,3.2324,154.71,154.68,3.2329]
[1729021132030,3.2324,154.71,154.69,3.2326]
[1729021134128,3.2322,154.72,154.69,3.2326]
[1729021136130,1.4312,154.75,154.68,3.2329]
[1729021136131,3.22998803,154.74,154.68,3.2329]
[1729021136926,3.2325,154.7,154.68,3.2329]
[1729021139729,3.2325,154.7,154.66,6.6401]
[1729021140036,3.2325,154.7,154.67,3.233]
[1729021140829,4.1279,154.75,154.66,6.6401]
[1729021141031,3.2322,154.72,154.7,3.2325]
[1729021141534,3.2316,154.75,154.72,3.232]
[1729021141733,1.3997,154.79,154.66,6.6401]
[1729021142034,6.7197,154.79,154.66,6.6401]
[1729021142533,9.87500062,154.79,154.66,6.6401]
[1729021142833,9.87500062,154.79,154.74,3.2315]
[1729021143228,3.2312,154.77,154.74,3.2315]
[1729021143429,9.87500062,154.79,154.72,5.32]
[1729021143630,9.87500062,154.79,154.73,3.2318]
[1729021144133,3.2313,154.76,154.73,3.2318]
[1729021144529,1.3997,154.79,154.72,5.32]
[1729021144735,3.231,154.78,154.72,5.32]
[1729021144941,6.6899,154.81,154.72,5.32]
[1729021145140,9.93371216,154.81,154.72,5.32]
[1729021145337,3.2307,154.79,154.76,3.2312]
[1729021146037,3.231,154.77,154.74,3.2316]
[1729021147042,3.231,154.78,154.71,5.32]
[1729021147443,3.231,154.78,154.73,3.2318]
[1729021147639,3.2311,154.77,154.71,5.32]
[1729021148543,3.2309,154.78,154.75,3.2313]
[1729021150140,3.2309,154.78,154.72,2.7546]
[1729021150141,3.2309,154.78,154.76,3.2312]
[1729021150643,3.2307,154.79,154.76,3.2312]
[1729021152146,3.2307,154.79,154.72,2.7546]
[1729021153039,3.22658773,154.82,154.77,3.2309]
[1729021153040,3.2305,154.8,154.77,3.2309]
[1729021153940,3.2308,154.79,154.76,3.2312]
[1729021154139,9.87630341,154.83,154.72,2.7546]
[1729021154535,3.2314,154.76,154.73,3.2318]
[1729021154745,3.2314,154.76,154.73,13.1618]
[1729021155244,3.2314,154.76,154.74,3.2316]
[1729021155546,9.93,154.79,154.74,3.2316]
[1729021155745,3.2311,154.77,154.74,3.2316]
[1729021156939,3.2311,154.77,154.73,9.93]
[1729021156940,3.232,154.73,154.7,3.2324]
[1729021157244,9.93,154.73,154.67,2.6543]
[1729021157547,3.2326,154.7,154.67,13.1631]
[1729021158049,9.93,154.72,154.68,3.2329]
[1729021158050,3.2324,154.71,154.68,3.2329]
[1729021158740,3.2324,154.71,154.67,13.163]
[1729021159147,3.2325,154.7,154.67,13.163]
[1729021159937,3.2325,154.7,154.67,3.233]
[1729021160337,24.04677717,154.75,154.66,5.32]
[1729021161742,3.2324,154.71,154.68,3.2329]
[1729021162453,15.51,154.73,154.63,2.6568]
[1729021162748,15.51,154.71,154.63,7.9768]
[1729021162945,3.233,154.68,154.65,3.2335]
[1729021163333,15.51,154.71,154.63,7.9768]
[1729021163541,8.53677717,154.75,154.67,3.233]
[1729021163542,3.2326,154.7,154.67,3.233]
[1729021164151,24.04677717,154.75,154.64,15.51]
[1729021164741,3.2321,154.72,154.68,3.2328]
[1729021164942,24.04677717,154.75,154.68,3.2328]
[1729021165345,24.04677717,154.75,154.64,15.51]
[1729021165551,24.04677717,154.75,154.67,3.233]
[1729021165749,24.04677717,154.75,154.64,15.51]
[1729021165947,3.233,154.68,154.64,5.32]
[1729021166150,15.51,154.73,154.66,3.2333]
[1729021166643,3.2328,154.69,154.66,3.2333]
[1729021167346,3.2327,154.7,154.67,3.233]
[1729021168350,3.2327,154.69,154.66,3.2332]
[1729021173357,1.4004,154.72,154.67,3.2331]
[1729021173658,3.2326,154.7,154.67,3.2331]
[1729021174059,3.2324,154.71,154.68,3.2328]
[1729021174853,3.2324,154.71,154.69,3.2327]
[1729021175058,5.32,154.75,154.66,15.51]
[1729021175450,3.232,154.73,154.7,3.2324]
[1729021176358,3.2318,154.74,154.71,3.2322]
[1729021181453,3.2315,154.75,154.73,3.2318]
[1729021181655,1.3429,154.76,154.71,15.51]
[1729021181861,15.25,154.8,154.74,9.93]
[1729021182059,3.231,154.78,154.75,3.2313]
[1729021182453,15.25,154.8,154.74,9.93]
[1729021182751,3.2311,154.77,154.74,13.1616]
[1729021184564,3.2309,154.78,154.75,3.2313]
[1729021185262,9.93,154.8,154.74,13.1615]
[1729021185464,9.93,154.8,154.74,9.93]
[1729021186363,3.2309,154.78,154.75,3.2314]
[1729021192669,9.93,154.76,154.66,7.7916]
[1729021192869,6.6547,154.81,154.7,9.93]
[1729021192870,9.93,154.74,154.7,9.93]
[1729021193174,9.93,154.76,154.7,9.93]
[1729021193376,3.2316,154.75,154.72,9.93]
[1729021193873,3.2316,154.75,154.72,13.162]
[1729021195474,3.2316,154.75,154.72,3.232]
[1729021200277,3.2316,154.75,154.7,9.93]
[1729021200570,9.93,154.78,154.74,3.2316]
[1729021201269,3.2312,154.77,154.74,3.2315]
[1729021203476,3.2307,154.79,154.76,3.2312]
[1729021205283,3.2314,154.76,154.73,3.2317]
[1729021205583,9.93,154.76,154.73,3.2317]
[1729021205880,13.1613,154.76,154.73,3.2317]
[1729021206484,3.2313,154.76,154.73,3.2317]
[1729021209983,9.93,154.77,154.72,2.7027]
[1729021210179,6.7192,154.82,154.75,9.93]
[1729021210377,9.93,154.79,154.73,9.93]
[1729021210983,3.2313,154.76,154.73,3.2318]
[1729021211291,6.7192,154.82,154.71,5.3]
[1729021211292,9.93,154.74,154.71,5.3]
[1729021211683,9.93,154.74,154.72,3.232]
[1729021212590,3.2328,154.69,154.67,2.7465]
[1729021212782,9.93,154.7,154.67,2.7465]
[1729021213685,9.93,154.69,154.66,5.3]
[1729021214085,13.1628,154.69,154.66,5.3]
[1729021214283,9.93,154.69,154.66,5.3]
[1729021214585,9.93,154.69,154.65,3.2335]
[1729021214586,9.93,154.68,154.64,5.3]
[1729021214792,13.163,154.68,154.64,8.5336]
[1729021214993,13.163,154.68,154.64,3.2336]
[1729021219397,9.93,154.68,154.64,3.2336]
[1729021219692,9.93,154.66,154.62,17.9322]
[1729021220090,13.1634,154.66,154.62,21.1662]
[1729021220395,13.1634,154.66,154.62,17.9322]
[1729021220590,9.93,154.66,154.6,9.93]
[1729021220794,9.93,154.66,154.61,8.5344]
[1729021220982,9.93,154.66,154.61,5.3]
[1729021221392,13.1634,154.66,154.62,3.234]
[1729021221988,13.1634,154.66,154.62,13.164]
[1729021227794,13.1634,154.66,154.63,3.2339]
[1729021228097,13.1634,154.66,154.62,9.93]
[1729021228098,3.2337,154.65,154.62,9.93]
[1729021228406,3.2337,154.65,154.62,13.1641]
[1729021230595,3.2337,154.65,154.61,5.3]
[1729021230596,3.2331,154.67,154.64,3.2336]
[1729021236402,3.233,154.68,154.64,13.1636]
[1729021237797,1.3652,154.69,154.66,9.93]
[1729021237997,9.93,154.72,154.66,9.93]
[1729021238199,1.332,154.74,154.67,9.93]
[1729021238499,1.332,154.74,154.68,3.2328]
[1729021238500,9.93,154.73,154.68,3.2328]
[1729021239505,3.2324,154.71,154.68,3.2328]
[1729021241500,9.93,154.71,154.59,7.8882]
[1729021241700,9.93,154.67,154.63,9.93]
[1729021242102,13.1633,154.67,154.63,13.1638]
[1729021242601,13.1633,154.67,154.63,9.93]
[1729021242809,3.2334,154.66,154.63,13.1639]
[1729021243305,3.2334,154.66,154.63,3.2339]
[1729021244297,3.2334,154.66,154.62,8.5341]
[1729021247402,3.2334,154.66,154.63,3.2338]
[1729021249214,3.2334,154.66,154.63,13.1638]
[1729021250015,9.93,154.67,154.63,9.93]
[1729021250205,13.1632,154.67,154.64,3.2336]
[1729021250609,5.3,154.7,154.64,9.93]
[1729021250610,9.93,154.69,154.64,9.93]
[1729021250809,3.2329,154.69,154.66,3.2333]
[1729021251118,9.93,154.7,154.65,9.93]
[1729021251513,9.93,154.72,154.67,9.93]
[1729021251712,9.93,154.73,154.67,9.93]
[1729021252014,9.93,154.73,154.69,9.93]
[1729021252615,1.332,154.74,154.7,9.93]
[1729021252920,1.332,154.74,154.71,9.93]
[1729021253412,1.332,154.74,154.7,9.93]
[1729021254607,1.332,154.74,154.72,9.93]
[1729021256115,116.76427026,154.76,154.72,13.1619]
[1729021256719,3.2315,154.75,154.72,13.1619]
[1729021257116,110.06557026,154.76,154.73,3.2318]
[1729021258123,110.06557026,154.76,154.72,9.93]
[1729021258124,3.2315,154.75,154.72,13.162]
[1729021260415,106.83427026,154.76,154.7,5.3]
[1729021260416,3.232,154.73,154.7,5.3]
[1729021260722,3.232,154.73,154.69,3.2326]
[1729021261925,9.93,154.74,154.69,3.2327]
[1729021262424,3.232,154.73,154.69,3.2327]
[1729021265618,3.232,154.73,154.69,3.2325]
[1729021266617,69.9,154.84,154.72,9.93]
[1729021266823,11.2947,154.8,154.74,9.93]
[1729021267232,11.2947,154.8,154.74,13.1616]
[1729021267629,11.2947,154.8,154.74,3.2316]
[1729021267836,3.2311,154.77,154.74,3.2316]
[1729021268037,9.93,154.78,154.73,3.2318]
[1729021268431,13.1612,154.77,154.72,15.23]
[1729021268635,9.93,154.77,154.72,18.4619]
[1729021268833,5.3,154.81,154.73,9.93]
[1729021269034,3.2303,154.81,154.77,3.2309]
[1729021269238,1.3647,154.83,154.77,3.2309]
[1729021269239,1.3647,154.83,154.79,9.93]
[1729021269541,4.5945,154.83,154.8,3.2303]
[1729021269738,4.5945,154.83,154.79,9.93]
[1729021270036,4.5945,154.83,154.78,9.93]
[1729021270241,4.5945,154.83,154.77,5.3]
[1729021270242,9.93,154.81,154.77,15.23]
[1729021270433,3.2305,154.8,154.77,5.3]
[1729021273130,3.2305,154.8,154.76,3.231]
[1729021273131,3.2312,154.77,154.73,11.3634]
[1729021273332,3.2312,154.77,154.73,8.1317]
[1729021273333,9.93,154.77,154.73,8.1317]
[1729021273531,9.93,154.77,154.73,5.3]
[1729021273833,13.1611,154.77,154.73,8.5318]
[1729021274526,13.1611,154.77,154.73,3.2318]
[1729021276438,13.1615,154.75,154.72,5.3]
[1729021276739,9.93,154.74,154.7,5.3]
[1729021276932,9.93,154.74,154.71,3.2322]
[1729021278135,9.93,154.74,154.72,3.232]
[1729021284342,3.2315,154.75,154.72,3.232]
[1729021284935,9.93,154.74,154.7,18.4624]
[1729021285545,13.1617,154.74,154.7,18.4624]
[1729021286736,3.232,154.73,154.7,5.3]
[1729021287353,13.1618,154.74,154.7,18.4624]
[1729021288257,3.2313,154.76,154.73,3.2318]
[1729021288556,9.93,154.77,154.73,9.93]
[1729021288953,3.2313,154.76,154.71,9.93]
[1729021289663,3.2313,154.76,154.72,3.2319]
[1729021290564,3.2313,154.76,154.73,3.2318]
[1729021291357,9.93,154.78,154.73,9.93]
[1729021291567,13.1609,154.78,154.74,3.2315]
[1729021291764,9.93,154.78,154.74,3.2315]
[1729021293265,3.2307,154.79,154.75,3.2313]
[1729021294961,3.2307,154.79,154.74,15.23]
[1729021295162,3.2307,154.79,154.76,3.2312]
[1729021299463,3.231,154.77,154.75,3.2313]
[1729021299776,9.93,154.78,154.72,5.3]
[1729021300170,3.2313,154.76,154.74,3.2316]
[1729021300475,3.2313,154.76,154.72,5.3]
[1729021300768,3.2313,154.76,154.73,3.2318]
[1729021301972,9.93,154.74,154.69,2.7758]
[1729021302171,9.93,154.74,154.69,8.0758]
[1729021302772,3.2321,154.72,154.69,11.3085]
[1729021303368,3.232,154.73,154.69,11.3085]
[1729021308364,4.71901432,154.77,154.67,3.233]
[1729021308365,3.2326,154.7,154.67,3.233]
[1729021308765,3.2326,154.7,154.66,15.23]
[1729021308973,3.2326,154.7,154.66,18.4632]
[1729021309274,3.2326,154.7,154.66,15.23]
[1729021309975,3.2326,154.7,154.66,5.3]
[1729021310270,3.2326,154.7,154.67,3.2331]
[1729021315175,15.23,154.75,154.69,9.93]
[1729021315376,9.93,154.76,154.72,9.93]
[1729021315677,3.2316,154.75,154.72,9.93]
[1729021316073,11.3607,154.77,154.72,9.93]
[1729021316279,3.2315,154.75,154.72,9.93]
[1729021316771,1.4307,154.77,154.73,9.93]
[1729021316969,3.2313,154.76,154.73,9.93]
[1729021317363,1.4307,154.77,154.74,9.93]
[1729021317364,3.2312,154.77,154.74,9.93]
[1729021317965,3.2309,154.78,154.74,9.93]